[Event "58th Akiba Rubinstein GM 2022"]
[Site "Polanica-Zdroj"]
[Date "2022.08.17"]
[Round "5.4"]
[White "Mastrovasilis, Dimitrios"]
[Black "Tazbir, Marcin"]
[Result "1-0"]
[ECO "B33"]
[WhiteElo "2597"]
[BlackElo "2511"]
[Annotator "TA"]
[PlyCount "81"]
[EventDate "2022.08.13"]
[EventCountry "POL"]
[SourceTitle "playchess.com"]
[Source "ChessBase"]
[SourceQuality "1"]
[TimeControl "40/5400+30:1800+30"]

{[%evp 20,81,16,3,5,12,8,0,0,7,8,9,12,10,22,0,14,0,7,0,0,0,26,11,25,24,51,44,46,47,44,43,56,48,72,69,85,90,81,86,87,75,114,121,220,139,234,237,438,444,993,966,873,727,729,718,748,559,719,721,700,665,916,863]} 1. e4 {[%emt 0:01:28]} c5 {[%emt 0:00:05]} 2. Nf3 {[%emt 0:00:34]} Nc6 {[%emt 0:00:02]} 3. d4 {[%emt 0:00:15]} cxd4 {[%emt 0:00:36]} 4. Nxd4 {[%emt 0:00:13]} Nf6 {[%emt 0:00:03]} 5. Nc3 {[%emt 0:00:12]} e5 {[%emt 0:00:03]} 6. Ndb5 {[%emt 0:00:19]} d6 {[%emt 0:00:05]} 7. Bg5 {[%emt 0:00:33]} a6 {[%emt 0:00:06]} 8. Na3 {[%emt 0:00:09]} b5 {[%emt 0:00:06]} 9. Nd5 {[%emt 0:01:25]} Be7 {[%emt 0:00:41]} 10. Bxf6 {[%emt 0:00:20]} Bxf6 {[%emt 0:00:07]} 11. c4 {[%emt 0:00:52]} b4 {[%emt 0:00:22] B33: Sicilian: Pelikan and Sveshnikov Variations.} 12. Nc2 {[%emt 0:00:09]} O-O {[%emt 0:01:53]} 13. g3 {[%emt 0:01:07]} a5 {[%emt 0:02:45] The position is equal.} 14. Bg2 {[%emt 0:00:23]} g6 {[%emt 0:00:47] is recently more successful than 14...Bg5.} 15. O-O {[%emt 0:00:49]} Bg7 {[%emt 0:01:04]} 16. Qd3 {[%emt 0:00:50]} Be6 {[%emt 0:02:00]} 17. Rad1 {[%emt 0:00:34]} Qb8 {[%emt 0:04:22] [#]} 18. h4 $146 {[%emt 0:08:01]} ({Predecessor:} 18. Kh1 Ra7 19. b3 Kh8 20. f4 f5 21. exf5 gxf5 22. Nde3 e4 23. Qxd6 Qc8 24. Qd2 {½-½ (96) Diaz Camallonga,C (2467)-Salem,A (2682) Chess.com INT 2020}) 18... h5 {[%emt 0:01:25]} 19. Kh2 {[%emt 0:03:08]} Qa7 {[%emt 0:03:45]} 20. b3 {[%emt 0:01:32]} Rad8 {[%emt 0:05:12]} 21. Qe2 {[%emt 0:07:28]} Rfe8 {[%emt 0:07:55][%cal Bf8e8,Be8e7,Be7a7,Ba7a3][%mdl 32]} 22. Rd3 {[%emt 0:03:42]} Qc5 {[%emt 0:10:40]} 23. Nc7 {[%emt 0:12:20] Pair of Knights!} Re7 {[%emt 0:05:07]} 24. Nb5 {[%emt 0:01:25]} Na7 {[%emt 0:10:57]} 25. Nxa7 {[%emt 0:09:01]} Rxa7 {[%emt 0:01:37]} 26. Rfd1 {[%emt 0:10:43]} Bh6 {[%emt 0:03:23]} 27. Bh3 {[%emt 0:11:21] Inhibits Bg4.} a4 {[%emt 0:05:25]} 28. Bxe6 {[%emt 0:01:14]} fxe6 {[%emt 0:00:07]} 29. Ne1 {[%emt 0:00:33][%cal Bc2e1,Be1d3,Bd3b2,Bb2c4][%mdl 32]} axb3 {[%emt 0:01:55]} 30. axb3 {[%emt 0:00:11]} Ra3 {[%emt 0:04:08]} 31. Kg2 {[%emt 0:02:33]} Kf7 {[%emt 0:03:57]} (31... Rd7 $16) 32. Rf3+ {[%emt 0:04:18]} Ke7 {[%emt 0:00:13]} (32... Kg7 $16 {was called for.} 33. Nd3 Qa5) 33. Nd3 $18 {[%emt 0:01:09]} Qa5 {[%emt 0:00:16]} (33... Qc7 34. Nxb4 Rc8) 34. c5 {[%emt 0:00:30] White is clearly winning.} Qc7 {[%emt 0:09:29]} (34... Rxb3 $142 35. Nxe5 dxe5 36. Rxb3 Rxd1 37. Qxd1 Qxc5) 35. cxd6+ {[%emt 0:05:28]} Qxd6 {[%emt 0:00:45]} 36. Nb2 {[%emt 0:00:41]} Qa6 {[%emt 0:01:06]} 37. Nc4 {[%emt 0:01:32] [#] Black must now prevent Rxd8.} Ra2 {[%emt 0:01:04]} 38. Qe1 {[%emt 0:01:34]} Rxd1 {[%emt 0:00:30]} 39. Qxd1 {[%emt 0:01:43]} Ra1 {[%emt 0:01:37]} 40. Qd3 {[%emt 0:00:00]} Re1 {[%emt 0:00:00] [#]} 41. Rf7+ $3 {[%emt 0:01:28][%mdl 512] Weighted Error Value: White=0.13 (very precise) /Black=0.23 (precise)} 1-0

[Event "58th Akiba Rubinstein GM 2022"]
[Site "Polanica-Zdroj"]
[Date "2022.08.17"]
[Round "5.5"]
[White "Sumets, Andrey"]
[Black "Donchenko, Alexander"]
[Result "1/2-1/2"]
[ECO "D38"]
[WhiteElo "2547"]
[BlackElo "2630"]
[Annotator "TA"]
[PlyCount "47"]
[EventDate "2022.08.13"]
[EventCountry "POL"]
[SourceTitle "playchess.com"]
[Source "ChessBase"]
[SourceQuality "1"]
[TimeControl "40/5400+30:1800+30"]

{[%evp 19,47,0,0,-4,0,-18,0,-11,0,0,0,0,0,0,0,0,0,0,0,0,3,3,2,0,0,0,10,0,0,0]} 1. d4 {[%emt 0:01:12]} Nf6 {[%emt 0:00:04]} 2. c4 {[%emt 0:00:03]} e6 {[%emt 0:00:07]} 3. Nf3 {[%emt 0:00:04]} d5 {[%emt 0:00:12]} 4. Nc3 {[%emt 0:01:19]} Bb4 {[%emt 0:00:15]} 5. cxd5 {[%emt 0:04:32]} exd5 {[%emt 0:00:38]} 6. Qa4+ {[%emt 0:00:12]} Nc6 {[%emt 0:00:07]} 7. Bg5 {[%emt 0:00:05]} h6 {[%emt 0:00:39]} 8. Bxf6 {[%emt 0:00:06]} Qxf6 {[%emt 0:00:06]} 9. e3 {[%emt 0:00:05]} O-O {[%emt 0:00:23]} 10. Rc1 {[%emt 0:03:20]} Rd8 {[%emt 0:01:17] The position is equal.} 11. a3 {[%emt 0:01:12] D38: Queen's Gambit Declined: Ragozin Defence (4 Nf3 Bb4).} Bf8 {[%emt 0:00:39]} 12. Be2 {[%emt 0:00:10]} Ne7 {[%emt 0:04:47]} 13. O-O {[%emt 0:01:01]} Ng6 {[%emt 0:16:23]} 14. b4 {[%emt 0:05:27]} a6 {[%emt 0:03:04]} 15. Qb3 {[%emt 0:08:27]} c6 {[%emt 0:03:20]} 16. Na4 {[%emt 0:00:56] [#]} Rb8 $146 {[%emt 0:13:49]} ({Predecessor:} 16... Bg4 17. Nc5 Rab8 18. Rc2 Qf5 19. Re1 Bxf3 20. Bxf3 Nh4 21. Be2 Rd6 22. Qd3 Qc8 {1-0 (35) Arbakov,V (2374)-Voitsekhovsky,S (2527) Samara 2003}) 17. Nc5 {[%emt 0:01:31]} Bd6 {[%emt 0:04:01]} 18. Rfe1 {[%emt 0:02:01]} Bg4 {[%emt 0:04:20]} 19. Qd1 {[%emt 0:08:08]} h5 {[%emt 0:08:08]} 20. h3 {[%emt 0:13:22]} Bf5 {[%emt 0:07:33]} 21. Nd2 {[%emt 0:05:39]} Qg5 {[%emt 0:01:06] [#] And now ...Bxh3 would win.} 22. Nf3 {[%emt 0:01:38]} Qf6 {[%emt 0:00:15]} 23. Nd2 {[%emt 0:01:07]} Qg5 {[%emt 0:05:38] Hoping for ...Bxh3.} 24. Nf3 {[%emt 0:00:17] A balanced but interesting game.  Weighted Error Value: White=0.02 (flawless) /Black=0.01 (flawless)} 1/2-1/2

[Event "58th Akiba Rubinstein GM 2022"]
[Site "Polanica-Zdroj"]
[Date "2022.08.18"]
[Round "6.1"]
[White "Plat, Vojtech"]
[Black "Donchenko, Alexander"]
[Result "0-1"]
[ECO "B52"]
[WhiteElo "2556"]
[BlackElo "2630"]
[Annotator "TA"]
[PlyCount "92"]
[EventDate "2022.08.13"]
[EventCountry "POL"]
[SourceTitle "playchess.com"]
[Source "ChessBase"]
[SourceQuality "1"]
[TimeControl "40/5400+30:1800+30"]

{[%evp 16,92,17,12,5,-17,0,-9,-10,-20,0,0,0,-6,0,0,20,-14,-11,-11,0,0,0,-20,-19,-19,-18,-16,-13,-15,-8,-9,-8,-9,0,-14,-8,-10,-13,-27,-12,-18,0,-31,-23,-74,-23,-32,-24,-30,-32,-41,0,-22,-22,-22,-22,-23,-23,-112,-109,-104,-106,-147,-147,-147,-147,-193,-193,-294,-279,-603,-513,-759,-758,-1993,-1882,-971,-775]} 1. e4 {[%emt 0:00:03]} c5 {[%emt 0:00:34]} 2. Nf3 {[%emt 0:00:05]} d6 {[%emt 0:00:11]} 3. Bb5+ {[%emt 0:00:09]} Bd7 {[%emt 0:01:39]} 4. Bxd7+ {[%emt 0:00:05]} Qxd7 {[%emt 0:00:13]} 5. O-O {[%emt 0:00:24]} Nf6 {[%emt 0:00:38]} 6. Re1 {[%emt 0:00:16]} Nc6 {[%emt 0:00:39]} 7. d4 {[%emt 0:00:20]} cxd4 {[%emt 0:02:55]} 8. Nxd4 {[%emt 0:00:16]} g6 {[%emt 0:02:11]} 9. Nc3 {[%emt 0:03:10]} Bg7 {[%emt 0:05:34] B52: Sicilian: Moscow Variation with 3...Bd7.} 10. h3 {[%emt 0:02:58]} O-O {[%emt 0:03:12]} 11. Bg5 {[%emt 0:03:51]} Rfe8 {[%emt 0:05:55] The position is equal.} 12. Qd2 {[%emt 0:10:03] [#]} Rac8 $146 {[%emt 0:08:29]} ({Predecessor:} 12... h5 13. Nf3 Rad8 14. Bh6 Bh8 15. Rab1 a6 16. Nd5 Nxd5 17. Qxd5 Ne5 18. Ng5 e6 {0-1 (49) Amarapala,S (1471)-Gaure,S (1532) Oslo 2017}) 13. Rad1 {[%emt 0:04:46]} a6 {[%emt 0:05:12]} 14. Nf3 {[%emt 0:03:28] And now e5 would win.} Qe6 {[%emt 0:09:58] Inhibits e5.} 15. Bh6 {[%emt 0:15:16]} Ne5 {[%emt 0:01:01] aiming for ...Nxf3+.} 16. Nxe5 {[%emt 0:00:42]} (16. Nd4 {is more complex.} Bxh6 17. Qxh6 Qc4 18. Nd5) 16... Bxh6 {[%emt 0:01:49]} 17. Qxh6 {[%emt 0:00:05]} Qxe5 {[%emt 0:00:07]} 18. Qe3 {[%emt 0:00:49]} Qc5 {[%emt 0:09:17]} 19. e5 {[%emt 0:01:03]} dxe5 {[%emt 0:00:36]} 20. Qxe5 {[%emt 0:00:20]} Qxe5 {[%emt 0:00:50]} 21. Rxe5 {[%emt 0:00:07]} Kf8 {[%emt 0:00:40]} 22. Rd2 {[%emt 0:02:48]} Red8 {[%emt 0:01:42]} 23. Rxd8+ {[%emt 0:00:45]} Rxd8 $11 {[%emt 0:00:02][%mdl 4096] Endgame KRN-KRN} 24. Kf1 {[%emt 0:00:17]} e6 {[%emt 0:01:26]} 25. Ke2 {[%emt 0:00:42]} Rc8 {[%emt 0:01:34]} 26. Kd2 {[%emt 0:02:24]} Ke7 {[%emt 0:01:11]} 27. Re3 {[%emt 0:00:58]} h5 {[%emt 0:00:49]} 28. a4 {[%emt 0:00:50]} Rc7 {[%emt 0:06:09]} 29. Kd3 {[%emt 0:02:58]} h4 {[%emt 0:02:24]} 30. Re2 {[%emt 0:01:37]} (30. Kd2 $11) 30... Rc5 {[%emt 0:02:16]} (30... Rd7+ $1 $17 31. Kc4 g5) 31. Ne4 {[%emt 0:13:20]} Rd5+ {[%emt 0:00:36]} 32. Ke3 {[%emt 0:05:28]} Re5 {[%emt 0:06:41]} 33. Kd4 {[%emt 0:00:38]} Rd5+ {[%emt 0:01:45]} 34. Ke3 {[%emt 0:00:15]} Nxe4 {[%emt 0:00:55]} 35. Kxe4 {[%emt 0:00:04] KR-KR} f5+ {[%emt 0:00:22]} 36. Kf3 {[%emt 0:04:30]} Rc5 {[%emt 0:12:46]} 37. Rd2 {[%emt 0:00:11]} (37. Ke3 $11) 37... e5 $1 $17 {[%emt 0:00:35][%cal Be6e5,Be5e4][%mdl 32]} 38. Ke2 {[%emt 0:01:36] [#]} Ke6 $1 {[%emt 0:00:48]} 39. b3 {[%emt 0:02:34] [#]} b5 $1 {[%emt 0:04:12] Against c4} 40. axb5 {[%emt 0:00:00]} axb5 {[%emt 0:00:00][%cal Ba6b5,Bb5b4][%mdl 32]} 41. Ke1 {[%emt 0:03:28]} (41. c4 $17) 41... e4 $19 {[%emt 0:02:42]} 42. Kd1 {[%emt 0:09:12]} (42. Kf1 {is a better defense.}) 42... b4 {[%emt 0:07:15]} 43. Ke1 $2 {[%emt 0:02:29]} (43. Re2) 43... Ke5 {[%emt 0:01:28] Black is clearly winning.} 44. Re2 {[%emt 0:00:32]} f4 {[%emt 0:03:28] Threatens to win with ...Rd5.} 45. Rd2 {[%emt 0:00:04]} Rd5 {[%emt 0:01:05] ...Rxd2 is the strong threat.} 46. Re2 {[%emt 0:02:36]} g5 {[%emt 0:01:35] Weighted Error Value: White=0.43/Black=0.05 (flawless)} 0-1

[Event "58th Akiba Rubinstein GM 2022"]
[Site "Polanica-Zdroj"]
[Date "2022.08.18"]
[Round "6.2"]
[White "Bernadskiy, Vitaliy"]
[Black "Sumets, Andrey"]
[Result "1/2-1/2"]
[ECO "B12"]
[WhiteElo "2598"]
[BlackElo "2547"]
[Annotator "TA"]
[PlyCount "94"]
[EventDate "2022.08.13"]
[EventCountry "POL"]
[SourceTitle "playchess.com"]
[Source "ChessBase"]
[SourceQuality "1"]
[TimeControl "40/5400+30:1800+30"]

{[%evp 9,94,4,1,-6,7,0,0,0,7,0,0,0,0,0,14,8,11,4,0,0,0,0,0,0,0,0,0,0,0,0,0,0,0,0,2,3,4,4,4,0,16,0,10,0,0,0,0,0,0,0,7,0,0,0,0,0,0,0,7,7,7,7,7,7,7,7,7,7,7,7,1,0,0,0,0,0,0,0,0,0,0,0,0,0,0,0,0]} 1. e4 {[%emt 0:00:02]} c6 {[%emt 0:00:10]} 2. d4 {[%emt 0:00:05]} d5 {[%emt 0:00:04]} 3. e5 {[%emt 0:00:03]} Bf5 {[%emt 0:00:03]} 4. c4 {[%emt 0:00:03]} e6 {[%emt 0:00:07]} 5. Nc3 {[%emt 0:00:04]} Ne7 {[%emt 0:00:05] The position is equal.} 6. Nf3 {[%emt 0:00:09] B12: Caro-Kann: Advance Variation.} Nd7 {[%emt 0:00:45]} 7. Nh4 {[%emt 0:01:19]} dxc4 {[%emt 0:02:31]} 8. Bxc4 {[%emt 0:01:49]} Nb6 {[%emt 0:01:09]} 9. Bb3 {[%emt 0:00:10]} h6 {[%emt 0:03:46]} 10. Nxf5 {[%emt 0:06:56]} Nxf5 {[%emt 0:00:12]} 11. Be3 {[%emt 0:00:54]} Bb4 {[%emt 0:25:58][%cal Oc6c5]} 12. O-O {[%emt 0:14:16] [#]} c5 $146 {[%emt 0:00:59][%cal Rc5d4]} ({Predecessor:} 12... Qh4 13. a3 Bf8 14. Qf3 g6 15. g3 Qe7 16. g4 Nh4 17. Qg3 Bg7 18. f4 O-O-O {1-0 (25) Ris,R (2381)-Grigoryan,M (2077) Coulsdon 2007}) 13. Ne2 {[%emt 0:10:56] Black should prevent a3.} O-O {[%emt 0:08:35]} 14. Qd3 {[%emt 0:14:22]} cxd4 {[%emt 0:07:25]} 15. Nxd4 {[%emt 0:12:10]} Bc5 {[%emt 0:10:24][%cal Rc5d4]} 16. Rad1 {[%emt 0:00:05]} Bxd4 {[%emt 0:03:52]} 17. Bxd4 {[%emt 0:01:27]} Qxd4 {[%emt 0:00:09]} 18. Qxd4 {[%emt 0:00:04]} Nxd4 {[%emt 0:00:04]} 19. Rxd4 {[%emt 0:00:03]} Rfd8 {[%emt 0:00:06]} 20. Rfd1 {[%emt 0:00:05]} Rxd4 {[%emt 0:00:06]} 21. Rxd4 $11 {[%emt 0:00:03][%mdl 4096] Endgame KRB-KRN} Kf8 {[%emt 0:00:11]} 22. f4 {[%emt 0:00:45]} Ke7 {[%emt 0:00:08]} 23. Kf2 {[%emt 0:00:37]} Rc8 {[%emt 0:00:08]} 24. Ke3 {[%emt 0:02:54]} h5 {[%emt 0:05:18]} 25. Kd2 {[%emt 0:03:58]} g6 {[%emt 0:00:23]} 26. Rd3 {[%emt 0:00:36]} Nc4+ {[%emt 0:01:33]} 27. Bxc4 {[%emt 0:00:07]} Rxc4 {[%emt 0:00:03] KR-KR} 28. g3 {[%emt 0:00:08]} Ra4 {[%emt 0:03:26]} 29. a3 {[%emt 0:00:38]} Rc4 {[%emt 0:00:18]} 30. Rc3 {[%emt 0:00:58]} Rxc3 {[%emt 0:00:07]} 31. Kxc3 {[%emt 0:02:48] KP-KP} Kd7 {[%emt 0:00:25]} 32. Kc4 {[%emt 0:00:09]} Kc6 {[%emt 0:00:07]} 33. a4 {[%emt 0:00:15]} Kb6 {[%emt 0:21:03]} 34. b4 {[%emt 0:02:07][%cal Bb2b4,Bb4b5][%mdl 32]} Kc6 {[%emt 0:00:26]} 35. b5+ {[%emt 0:01:22]} Kc7 {[%emt 0:00:10]} 36. Kc5 {[%emt 0:00:49]} b6+ {[%emt 0:00:39]} 37. Kd4 {[%emt 0:00:10]} Kd7 {[%emt 0:00:05]} 38. Ke4 {[%emt 0:00:16]} Ke7 {[%emt 0:00:08]} 39. Kf3 {[%emt 0:01:15]} Kf8 {[%emt 0:01:15]} 40. g4 {[%emt 0:00:00]} hxg4+ {[%emt 0:00:00]} 41. Kxg4 {[%emt 0:04:01]} Kg8 {[%emt 0:01:51]} 42. Kg5 {[%emt 0:00:30]} Kg7 {[%emt 0:00:08]} 43. h3 {[%emt 0:00:14]} Kg8 {[%emt 0:01:21]} 44. Kf6 {[%emt 0:00:34] [#] Threatening mate with Ke7.} Kf8 {[%emt 0:00:18]} 45. h4 {[%emt 0:00:16]} Ke8 {[%emt 0:00:04]} 46. Kg7 {[%emt 0:00:58]} Ke7 {[%emt 0:00:05]} 47. Kg8 {[%emt 0:00:07]} Ke8 $1 {[%emt 0:00:05] An uneventful encounter.  Weighted Error Value: White=0.02 (flawless) /Black=0.02 (flawless)} 1/2-1/2

[Event "58th Akiba Rubinstein GM 2022"]
[Site "Polanica-Zdroj"]
[Date "2022.08.18"]
[Round "6.3"]
[White "Tazbir, Marcin"]
[Black "Tomczak, Jacek"]
[Result "1/2-1/2"]
[ECO "A15"]
[WhiteElo "2511"]
[BlackElo "2596"]
[Annotator "TA"]
[PlyCount "65"]
[EventDate "2022.08.13"]
[EventCountry "POL"]
[SourceTitle "playchess.com"]
[Source "ChessBase"]
[SourceQuality "1"]
[TimeControl "40/5400+30:1800+30"]

{[%evp 9,65,-8,0,0,0,-23,-18,-8,-5,-35,-43,-51,-48,-48,-44,-61,-59,-70,-47,-64,-52,-90,-40,-75,-46,-41,-50,-45,-37,-44,-42,-39,-46,-36,-16,-23,6,8,5,6,0,0,3,14,53,57,77,26,27,29,50,49,50,45,39,8,2,4]} 1. c4 {[%emt 0:00:03]} Nf6 {[%emt 0:00:19]} 2. g3 {[%emt 0:00:04]} c6 {[%emt 0:00:24]} 3. Bg2 {[%emt 0:00:35]} d5 {[%emt 0:00:07]} 4. Nf3 {[%emt 0:00:04]} dxc4 {[%emt 0:00:45]} 5. a4 {[%emt 0:01:30]} Bf5 {[%emt 0:08:25]} 6. Na3 {[%emt 0:03:32] A11: English Opening: 1...c6.} Qd5 {[%emt 0:07:19]} 7. Nh4 {[%emt 0:02:54]} Be4 {[%emt 0:00:48]} 8. f3 {[%emt 0:00:59]} Bg6 {[%emt 0:00:37]} 9. Nxg6 {[%emt 0:00:14]} hxg6 {[%emt 0:00:06]} ({Of course not} 9... fxg6 10. Qc2 $11) 10. Qc2 {[%emt 0:00:07]} e5 $36 {[%emt 0:02:54][%mdl 2048] White is under pressure.} 11. Qxc4 {[%emt 0:01:31] [#]} Na6 $146 {[%emt 0:00:30] Prevents b4.} ({Predecessor:} 11... Nbd7 12. d3 Qc5 13. Qxc5 Nxc5 14. Nc4 Nb3 15. Rb1 Bb4+ 16. Kf2 Nd7 17. Be3 f6 {0-1 (59) Vandezande,A-Krijgelmans,J Ostend 1987}) 12. Qxd5 {[%emt 0:03:30]} Nxd5 {[%emt 0:00:34]} 13. Rb1 {[%emt 0:03:25]} O-O-O {[%emt 0:04:47]} 14. Nc4 {[%emt 0:11:14]} f6 {[%emt 0:01:58]} 15. b3 {[%emt 0:03:17]} Bb4 {[%emt 0:09:37]} ({Black should try} 15... g5 $17) 16. Ba3 {[%emt 0:07:48]} Ne3 {[%emt 0:12:03]} 17. Nxe3 {[%emt 0:02:00] [#] Bxb4 is the strong threat.} Bxa3 {[%emt 0:01:42]} 18. Nc2 {[%emt 0:00:09]} Be7 {[%emt 0:20:45]} 19. b4 {[%emt 0:06:36]} f5 {[%emt 0:00:57]} 20. f4 {[%emt 0:06:22]} exf4 21. gxf4 {[%emt 0:02:42]} Nc7 {[%emt 0:12:22]} 22. e3 {[%emt 0:04:25]} g5 {[%emt 0:00:25]} 23. fxg5 {[%emt 0:01:12]} Bxg5 {[%emt 0:00:14]} 24. b5 $1 {[%emt 0:00:05]} cxb5 {[%emt 0:01:31]} (24... Bh4+ {with more complications.} 25. Ke2 cxb5 26. Na3 f4) 25. Nd4 {[%emt 0:03:00]} Rxd4 {[%emt 0:05:57]} 26. exd4 {[%emt 0:00:16]} Re8+ {[%emt 0:00:05]} 27. Kd1 {[%emt 0:05:28]} Rd8 {[%emt 0:00:32]} 28. axb5 {[%emt 0:01:22]} (28. h4 $16 Bf4 29. axb5) 28... Rxd4 $11 {[%emt 0:00:19]} 29. Rb2 {[%emt 0:00:12]} Ne8 {[%emt 0:02:29]} 30. Rc2+ {[%emt 0:02:26]} Kb8 {[%emt 0:00:20]} 31. Re1 {[%emt 0:00:53]} Nd6 {[%emt 0:00:27]} 32. Re6 {[%emt 0:00:51]} Nxb5 {[%emt 0:01:58]} 33. Re8+ {Weighted Error Value: White=0.09 (flawless) /Black=0.11 (very precise)} 1/2-1/2

[Event "58th Akiba Rubinstein GM 2022"]
[Site "Polanica-Zdroj"]
[Date "2022.08.18"]
[Round "6.4"]
[White "Teclaf, Pawel"]
[Black "Mastrovasilis, Dimitrios"]
[Result "1/2-1/2"]
[ECO "C47"]
[WhiteElo "2550"]
[BlackElo "2597"]
[Annotator "TA"]
[PlyCount "60"]
[EventDate "2022.08.13"]
[EventCountry "POL"]
[SourceTitle "playchess.com"]
[Source "ChessBase"]
[SourceQuality "1"]
[TimeControl "40/5400+30:1800+30"]

{[%evp 16,60,16,6,4,0,5,4,5,5,5,4,8,12,8,6,6,7,7,6,7,-7,-7,-4,-8,-14,0,0,0,0,0,0,0,0,0,0,0,0,0,0,0,0,0,0,0,0,0]} 1. e4 {[%emt 0:00:03]} e5 {[%emt 0:00:30]} 2. Nf3 {[%emt 0:00:03]} Nc6 {[%emt 0:00:14]} 3. Nc3 {[%emt 0:00:03]} Nf6 {[%emt 0:00:09]} 4. d4 {[%emt 0:00:04]} exd4 {[%emt 0:00:08]} 5. Nxd4 {[%emt 0:00:04]} Bb4 {[%emt 0:00:10]} 6. Nxc6 {[%emt 0:00:03]} bxc6 {[%emt 0:00:07]} 7. Bd3 {[%emt 0:00:03][%cal Bf1d3,Bd3e4,Be4c6][%mdl 32]} d5 {[%emt 0:00:16]} 8. Bd2 {[%emt 0:00:04]} O-O {[%emt 0:00:21]} 9. O-O {[%emt 0:00:03] The position is equal.} Bxc3 {[%emt 0:00:08] C47: Scotch Four Knights and Four Knights with 4 g3.} (9... Bd6 {is more complex.} 10. h3 Rb8 11. Re1 dxe4 12. Nxe4 Nxe4 13. Rxe4 Bf5) 10. Bxc3 {[%emt 0:00:04]} dxe4 $1 {[%emt 0:00:08][%mdl 4] is recently more successful than 10...Nxe4.} 11. Bxf6 {[%emt 0:00:03][%mdl 64] [#] Remove Defender} Qxf6 {[%emt 0:00:09]} 12. Bxe4 {[%emt 0:00:04]} Qxb2 {[%emt 0:00:15]} 13. Bxc6 {[%emt 0:00:03]} Rb8 {[%emt 0:00:08]} 14. Rb1 {[%emt 0:00:03]} Qxb1 {[%emt 0:00:08]} 15. Qxb1 {[%emt 0:00:05]} Rxb1 {[%emt 0:00:06]} 16. Rxb1 $11 {[%emt 0:00:03][%mdl 4096] Endgame KRB-KRB} Rd8 {[%emt 0:00:18]} 17. Bf3 {[%emt 0:00:06]} Kf8 {[%emt 0:00:15] [#]} 18. Rb3 $146 {[%emt 0:05:50]} ({Predecessor:} 18. Rb8 Re8 19. h4 Ba6 20. Rb3 Re5 21. Rc3 Re7 22. Ra3 Re6 23. Bd5 Rb6 24. Bb3 {1-0 (64) Karjakin,S (2743)-Vidit,S (2727) Wijk aan Zee 2022}) 18... Be6 {[%emt 0:00:29]} 19. Rb7 {[%emt 0:01:04]} c5 {[%emt 0:00:34]} 20. Rc7 {[%emt 0:16:33]} Bxa2 {[%emt 0:00:49]} 21. Rxc5 {[%emt 0:08:41]} Be6 {[%emt 0:00:07]} 22. Ra5 {[%emt 0:00:21]} Rd2 {[%emt 0:00:07]} 23. Rxa7 {[%emt 0:00:09]} Rxc2 {[%emt 0:00:07] [#] ( -> ...Rc1+)} 24. Ra1 {[%emt 0:00:16] Inhibits Rc1+.} g6 {[%emt 0:00:13]} 25. h4 {[%emt 0:00:56]} Kg7 {[%emt 0:00:11]} 26. g3 {[%emt 0:00:06]} h5 {[%emt 0:00:11]} 27. Re1 {[%emt 0:00:19]} Kf6 {[%emt 0:00:16]} 28. Kg2 {[%emt 0:00:32]} Rd2 {[%emt 0:00:11]} 29. Re3 {[%emt 0:00:38]} Bd5 {[%emt 0:00:16]} 30. Bxd5 {[%emt 0:00:04]} Rxd5 {[%emt 0:00:06] An interesting draw.  Weighted Error Value: White=0.02 (flawless) /Black=0.01 (flawless)} 1/2-1/2

[Event "58th Akiba Rubinstein GM 2022"]
[Site "Polanica-Zdroj"]
[Date "2022.08.18"]
[Round "6.5"]
[White "Kempinski, Robert"]
[Black "Nasuta, Grzegorz"]
[Result "1/2-1/2"]
[ECO "A16"]
[WhiteElo "2558"]
[BlackElo "2500"]
[Annotator "TA"]
[PlyCount "60"]
[EventDate "2022.08.13"]
[EventCountry "POL"]
[SourceTitle "playchess.com"]
[Source "ChessBase"]
[SourceQuality "1"]
[TimeControl "40/5400+30:1800+30"]

{[%evp 16,60,21,15,30,0,0,0,0,0,0,0,0,0,0,0,0,2,27,0,9,0,0,0,0,0,0,0,0,0,0,0,0,0,0,0,0,0,0,0,0,0,0,0,0,0,0]} 1. c4 {[%emt 0:00:06]} Nf6 {[%emt 0:00:10]} 2. Nc3 {[%emt 0:00:27]} d5 {[%emt 0:00:07]} 3. cxd5 {[%emt 0:00:27]} Nxd5 {[%emt 0:00:07]} 4. Nf3 {[%emt 0:01:15]} g6 {[%emt 0:00:15]} 5. e4 {[%emt 0:00:59]} Nxc3 {[%emt 0:00:10]} 6. dxc3 {[%emt 0:02:36]} Qxd1+ {[%emt 0:00:16]} 7. Kxd1 {[%emt 0:00:03]} f6 {[%emt 0:01:06]} 8. Be3 {[%emt 0:00:17]} e5 {[%emt 0:00:09]} 9. Nd2 {[%emt 0:00:25]} Nd7 {[%emt 0:00:34][%cal Bb8d7,Bd7c5,Bc5a4][%mdl 32] 9...Be6 is vanishing. A16: English Opening: 1...Nf6 with ...d5.} 10. Kc2 {[%emt 0:01:06]} Bc5 {[%emt 0:00:43]} 11. Bxc5 {[%emt 0:00:16]} Nxc5 {[%emt 0:00:05]} 12. b4 {[%emt 0:00:39] [#]} Na4 $146 {[%emt 0:08:05]} ({Predecessor:} 12... Ne6 13. Nc4 Bd7 14. a4 Ke7 15. Ne3 a5 16. Nd5+ Kf7 17. Bc4 Kg7 18. Rhd1 Rhd8 {½-½ (26) Alterman,B (2572)-Rodshtein,M (2609) Israel 2009}) 13. Bb5+ {[%emt 0:03:34]} Bd7 {[%emt 0:00:29]} 14. Bxd7+ {[%emt 0:00:10]} Kxd7 {[%emt 0:00:04]} 15. Rhd1 {[%emt 0:00:13]} Ke6 {[%emt 0:01:48]} 16. Nb3 {[%emt 0:00:53]} Rhd8 {[%emt 0:05:00] Prevents Rd5.} 17. c4 {[%emt 0:02:37]} b6 {[%emt 0:05:25] Inhibits Na5. The position is equal.} 18. Rd5 {[%emt 0:00:25]} (18. f3 {seems wilder.} h6 19. Rac1 c6 20. c5) 18... c6 {[%emt 0:00:21]} 19. Rxd8 {[%emt 0:00:08]} Rxd8 $11 {[%emt 0:00:05][%mdl 4096] Endgame KRN-KRN} 20. Re1 {[%emt 0:00:43]} a6 {[%emt 0:00:54]} 21. f3 {[%emt 0:01:02]} h5 {[%emt 0:01:10]} 22. c5 {[%emt 0:02:24]} bxc5 {[%emt 0:00:23]} 23. bxc5 {[%emt 0:00:08]} g5 {[%emt 0:01:28]} 24. Re2 {[%emt 0:00:21]} Rb8 {[%emt 0:01:55]} 25. Rd2 {[%emt 0:01:00] Strongly threatening Rd6+.} Ke7 {[%emt 0:01:30]} 26. Rd6 {[%emt 0:01:31]} Nxc5 {[%emt 0:01:01]} 27. Rxc6 {[%emt 0:00:10]} Nxb3 {[%emt 0:00:10]} 28. axb3 {[%emt 0:00:06]} a5 {[%emt 0:00:48]} 29. Rc5 {[%emt 0:00:35]} Ra8 {[%emt 0:00:15]} 30. Kb2 {[%emt 0:01:09]} Rd8 {[%emt 0:01:01] An interesting draw.  Weighted Error Value: White=0.04 (flawless) /Black=0.02 (flawless)} 1/2-1/2